bitfinex/quotes_SOLUSD_20250305
["timestamp","ask_amount","ask_price","bid_price","bid_amount"]
[1741194828502,24.4447,143.18,143.08,567.52537263]
[1741194828702,24.4447,143.18,143.08,560.53637263]
[1741194829280,24.4447,143.18,143.08,529.8]
[1741194829692,24.4447,143.18,143.08,536.789]
[1741194829884,24.4447,143.18,143.08,560.53637263]
[1741194830292,24.4447,143.18,143.08,567.52527263]
[1741194830491,24.4447,143.18,143.09,30.73637263]
[1741194830694,24.4447,143.18,143.08,536.7889]
[1741194830886,24.4447,143.18,143.09,30.73637263]
[1741194831901,24.4447,143.18,143.1,30.73637263]
[1741194832082,6.9838,143.19,143.13,30.73637263]
[1741194832282,6.9838,143.19,143.13,111.63637263]
[1741194832784,6.9838,143.19,143.14,30.73637263]
[1741194832998,7.0133,143.2,143.14,111.63637263]
[1741194833283,7.0133,143.2,143.15,30.73637263]
[1741194833611,0.03,143.2,143.16,30.73637263]
[1741194833804,0.03,143.2,143.16,111.63637263]
[1741194834010,0.03,143.2,143.16,80.9]
[1741194835086,0.03,143.2,143.16,392.9]
[1741194836001,0.03,143.2,143.16,430.62137263]
[1741194836185,0.03,143.2,143.19,30.73637263]
[1741194836384,0.03,143.2,143.19,248.53637263]
[1741194836789,1.6578,143.31,143.22,20.0]
[1741194837086,26.0804,143.31,143.22,217.8]
[1741194837286,26.0804,143.31,143.22,248.53637263]
[1741194837508,26.0804,143.31,143.22,217.8]
[1741194838502,26.0804,143.31,143.22,255.51847263]
[1741194838685,26.0804,143.31,143.22,248.53637263]
[1741194839391,26.0804,143.31,143.23,312.0]
[1741194839591,26.0804,143.31,143.23,392.9]
[1741194840202,8.6357,143.31,143.23,430.61807263]
[1741194840408,8.6357,143.31,143.23,392.9]
[1741194840810,26.0804,143.31,143.23,392.9]
[1741194841116,68.34623938,143.3,143.23,80.9]
[1741194841302,18.64964886,143.29,143.23,80.9]
[1741194841490,20.0,143.26,143.17,30.73637263]
[1741194841690,7.6146,143.26,143.17,217.8]
[1741194841896,24.4328,143.25,143.17,217.8]
[1741194842711,86.99588824,143.24,143.17,80.9]
[1741194843017,67.91975467,143.23,143.14,217.8]
[1741194843197,67.91975467,143.23,143.14,80.9]
[1741194844011,24.4378,143.22,143.14,392.9]
[1741194844908,1.623,143.2,143.12,80.9]
[1741194845105,67.91975467,143.19,143.12,80.9]
[1741194845305,86.99588824,143.18,143.09,0.033]
[1741194845502,67.91975467,143.17,143.09,0.033]
[1741194846092,24.448,143.16,143.09,0.033]
[1741194847115,24.448,143.16,143.09,80.933]
[1741194847920,24.448,143.16,143.09,392.933]
[1741194848214,6.9851,143.16,143.09,430.65787263]
[1741194848416,6.9851,143.16,143.09,392.933]
[1741194848715,24.448,143.16,143.09,80.933]
[1741194848899,67.91975467,143.15,143.09,0.033]
[1741194850299,6.9861,143.14,143.09,0.033]
[1741194851721,6.5441,143.16,143.1,30.73637263]
[1741194852706,6.5441,143.16,143.09,118.65777263]
[1741194852909,6.9842,143.18,143.1,30.73637263]
[1741194853110,6.9842,143.18,143.11,30.73637263]
[1741194854027,6.9838,143.19,143.12,30.73637263]
[1741194854420,6.9838,143.19,143.11,118.62377263]
[1741194855010,6.9838,143.19,143.12,312.0]
[1741194855333,6.9838,143.19,143.12,423.63637263]
[1741194855627,6.9838,143.19,143.12,392.9]
[1741194855814,67.91975467,143.18,143.1,80.9]
[1741194856310,6.9847,143.17,143.1,80.9]
[1741194857522,6.9847,143.17,143.1,80.933]
[1741194857819,24.4464,143.17,143.1,80.933]
[1741194858015,24.4464,143.17,143.1,0.033]
[1741194858214,86.99588824,143.16,143.1,0.033]
[1741194858434,1.5466,143.15,143.1,0.033]
[1741194858641,67.91975467,143.14,143.1,0.033]
[1741194859748,6.9866,143.13,143.1,0.033]
[1741194861235,92.37295467,143.13,143.1,0.033]
[1741194863417,67.91975467,143.12,143.09,0.033]
[1741194863811,20.0,143.1,143.09,0.0001]
[1741194864236,87.91975467,143.1,143.09,0.0001]
[1741194864445,1.80586157,143.09,143.02,80.933]
[1741194864624,1.80586157,143.09,143.02,0.033]
[1741194864625,67.91975467,143.08,143.02,0.033]
[1741194865427,24.4634,143.07,143.02,0.033]
[1741194867736,30.11866128,143.07,143.02,0.033]
[1741194868139,65.06656128,143.07,143.02,0.033]
[1741194868331,86.99588824,143.06,143.02,0.033]
[1741194868645,1.5857,143.03,142.97,0.033]
[1741194868845,67.91975467,143.02,142.97,0.033]
[1741194869048,74.30345467,143.02,142.97,0.033]
[1741194869351,1.5857,143.03,142.98,30.73637263]
[1741194869843,1.5857,143.03,142.97,255.56377263]
[1741194870236,1.5857,143.03,142.97,224.8274]
[1741194870755,1.5857,143.03,142.97,255.56377263]
[1741194870927,1.5857,143.03,142.98,30.73637263]
[1741194871440,1.5857,143.03,142.98,342.73637263]
[1741194871958,1.5857,143.03,142.98,30.73637263]
[1741194872437,1.5857,143.03,142.97,261.63227263]
[1741194873244,1.5857,143.03,142.98,30.73637263]
[1741194873431,1.5604,143.08,142.99,30.73637263]
[1741194873639,8.5496,143.08,143.0,30.73637263]
[1741194873840,8.5496,143.08,143.01,30.73637263]
[1741194874039,8.5496,143.08,143.0,30.73637263]
[1741194874554,8.5496,143.08,143.0,37.72907263]
[1741194874940,8.5496,143.08,143.01,312.0]
[1741194877135,8.5496,143.08,143.01,318.9924]
[1741194877954,1.5604,143.08,143.02,30.73637263]
[1741194878155,1.5604,143.08,143.03,30.73637263]
[1741194878360,8.5495,143.08,143.02,224.7918]
[1741194878558,8.5495,143.08,143.02,217.8]
[1741194878759,26.0222,143.08,143.02,217.8]
[1741194880745,8.5495,143.08,143.02,224.7919]
[1741194881070,8.5495,143.08,143.02,536.7919]
[1741194881562,8.5495,143.08,143.02,529.8]
[1741194881862,8.5495,143.08,143.02,224.7919]
[1741194882066,8.5495,143.08,143.02,87.8919]
[1741194882261,8.5495,143.08,143.02,118.62827263]
[1741194882846,8.5495,143.08,143.03,30.73637263]
[1741194883057,8.5495,143.08,143.02,118.62827263]
[1741194883565,8.5495,143.08,143.02,80.9]
[1741194883943,26.0222,143.08,143.02,80.9]
[1741194884349,8.5495,143.08,143.02,80.9]
[1741194884660,26.0222,143.08,143.02,80.9]
[1741194887167,8.5495,143.08,143.02,118.62827263]
[1741194887666,8.5495,143.08,143.02,111.63637263]
[1741194887866,8.5495,143.08,143.02,80.9]
[1741194888074,26.0222,143.08,143.02,80.9]
[1741194888370,26.0222,143.08,143.0,80.9]
[1741194889269,60.9676,143.08,143.0,80.9]
[1741194890954,60.9676,143.08,143.01,2.54258486]
[1741194891151,26.0222,143.08,143.0,87.893]
[1741194891355,26.0222,143.08,143.01,30.73637263]
[1741194891762,26.0222,143.08,143.0,80.9]
[1741194892147,26.0222,143.08,143.0,80.4]
[1741194892347,26.0222,143.08,143.0,87.3928]
[1741194892566,26.0222,143.08,143.0,118.12917263]
[1741194892778,26.0222,143.08,143.0,111.16937263]
[1741194893152,26.0222,143.08,143.0,80.433]
[1741194894662,6.5586,143.07,143.0,80.433]
[1741194894967,22.13836163,143.11,143.0,80.433]
[1741194894968,6.9871,143.12,143.05,30.73637263]
[1741194895762,6.9871,143.12,143.03,30.73637263]
[1741194895970,24.4549,143.12,143.03,30.73637263]
[1741194896358,24.4549,143.12,143.03,37.72787263]
[1741194896661,6.9871,143.12,143.04,0.28432314]
[1741194896868,8.5904,143.13,143.05,19.23667364]
[1741194897178,8.5904,143.13,143.04,19.23667364]
[1741194897489,26.057,143.13,143.04,26.22767364]
[1741194898406,26.057,143.13,143.04,338.22767364]
[1741194898590,26.057,143.13,143.04,349.76618781]
[1741194898893,26.057,143.13,143.04,318.991]
[1741194899195,26.057,143.13,143.04,312.0]
[1741194899491,20.0,143.1,143.03,118.16648781]
[1741194899794,19.07613357,143.12,143.03,80.4]
[1741194900383,26.057,143.13,143.03,118.16638781]
[1741194900574,8.5904,143.13,143.05,30.77518781]
[1741194900902,26.057,143.13,143.05,30.77518781]
[1741194901058,26.057,143.13,143.03,87.3913]
[1741194901390,26.057,143.13,143.03,87.3914]
[1741194901689,8.5904,143.13,143.04,30.77518781]
[1741194901858,26.057,143.13,143.04,30.77518781]
[1741194902064,18.79181043,143.12,143.03,80.4]
[1741194902668,0.28432314,143.11,143.03,80.4]
[1741194902870,92.37815467,143.1,143.03,80.4]
[1741194903486,7.8786,143.08,143.0,80.433]
[1741194903789,52.91975467,143.07,143.0,80.433]
[1741194904887,24.4651,143.06,143.0,80.433]
[1741194906580,25.23663357,143.05,143.0,80.433]
[1741194906882,24.4651,143.06,143.0,80.433]
[1741194906883,59.91095467,143.04,143.0,0.033]
[1741194907074,6.9912,143.04,143.0,0.033]
[1741194907667,24.4688,143.04,143.0,0.033]
[1741194908263,53.34623938,143.03,143.0,0.033]
[1741194908568,0.42648471,142.97,142.94,0.033]
[1741194908761,0.42648471,142.97,142.9,0.033]
[1741194908762,24.4823,142.96,142.9,0.033]
[1741194909167,6.9949,142.96,142.9,0.033]
[1741194909375,52.91975467,142.99,142.92,30.77518781]
[1741194909571,52.91975467,142.99,142.93,30.77518781]
[1741194909766,52.91975467,142.99,142.92,423.17518781]
[1741194909967,59.91335467,142.99,142.92,392.4]
[1741194910182,0.42648471,142.98,142.92,80.4]
[1741194910887,6.9944,142.97,142.92,80.4]
[1741194911186,6.9941,142.98,142.92,87.3969]
[1741194911381,6.9941,142.98,142.92,80.4]
[1741194912803,24.479,142.98,142.92,80.4]
[1741194912985,6.9941,142.98,142.92,80.4]
[1741194913295,6.9934,143.0,142.93,30.77518781]
[1741194913588,24.4759,143.0,142.92,80.4]
[1741194913797,77.39565467,143.0,142.92,80.4]
[1741194914393,77.39565467,143.0,142.92,87.3969]
[1741194914589,52.91975467,143.0,142.92,118.17208781]
[1741194915306,52.91975467,143.0,142.93,30.77518781]
[1741194915797,59.91275467,143.0,142.92,80.4]
[1741194916497,59.91275467,143.0,142.9,167.70818781]
[1741194916498,19.07613357,142.99,142.9,217.333]
[1741194917005,6.9949,142.96,142.9,80.433]
[1741194917503,59.91465467,142.96,142.9,0.033]
[1741194918202,73.54178824,142.95,142.9,0.033]
[1741194918502,80.00988824,142.95,142.9,0.033]
[1741194918690,61.36023938,142.95,142.9,0.033]
[1741194919002,1.5459,142.95,142.9,0.033]
[1741194919386,21.5459,142.95,142.9,0.033]
[1741194920075,0.42648471,142.94,142.9,0.033]
[1741194920508,20.0,142.92,142.9,0.033]
[1741194920883,26.9972,142.92,142.9,0.033]
[1741194922999,26.9969,142.92,142.9,0.033]
[1741194923201,52.91975467,142.93,142.9,0.033]
[1741194923404,1.5459,142.95,142.9,0.033]
[1741194923599,8.5414,142.95,142.9,0.033]
[1741194924301,0.42648471,142.94,142.9,0.033]
[1741194924523,20.0,142.92,142.9,0.033]
[1741194924985,6.9974,142.91,142.9,0.033]
[1741194925181,52.91975467,142.94,142.9,0.033]
[1741194925391,59.91565467,142.94,142.9,0.033]
[1741194926007,1.6229,142.99,142.92,30.77518781]
[1741194926305,0.03,142.99,142.95,30.77518781]
[1741194926609,0.03,142.99,142.95,411.65901937]
[1741194926810,6.9915,143.03,142.95,411.65901937]
[1741194927112,6.989,143.08,142.98,25.42371937]
[1741194927407,6.989,143.08,143.01,19.25901937]
[1741194927607,52.04265467,143.11,143.03,19.25901937]
[1741194927608,6.9881,143.1,143.03,19.25901937]
[1741194927988,6.9881,143.1,143.02,19.25901937]
[1741194928206,6.9881,143.1,143.01,217.3]
[1741194928207,20.0,143.06,142.98,86.5647]
[1741194928407,20.0,143.05,142.98,86.5647]
[1741194928709,0.42648471,143.04,142.98,80.4]
[1741194928889,0.42648471,143.04,142.94,117.40416862]
[1741194929091,72.04265467,143.05,142.96,30.81606862]
[1741194929295,6.9911,143.04,142.95,18.933972]
[1741194929497,6.9911,143.04,142.96,30.81606862]
[1741194929801,24.4687,143.04,142.94,254.30416862]
[1741194930104,6.9911,143.04,142.96,30.81606862]
[1741194930906,6.9911,143.04,142.97,30.81606862]
[1741194931093,26.99,143.06,142.98,49.46571748]
[1741194931404,6.9876,143.11,143.03,37.56335333]
[1741194931606,7.0167,143.13,143.06,30.81606862]
[1741194931817,7.0167,143.13,143.06,80.4]
[1741194932191,7.0167,143.13,143.06,111.21606862]
[1741194933002,7.0167,143.13,143.06,80.4]
[1741194933518,24.4833,143.13,143.06,80.4]
[1741194933716,20.0,143.1,143.03,86.7208]
[1741194933905,52.04265467,143.11,143.03,86.7208]
[1741194934407,52.46913938,143.1,143.03,80.4]
[1741194934712,52.46913938,143.1,143.0,136.9]
[1741194934713,0.42648471,143.08,143.0,80.4]
[1741194935017,6.99,143.06,143.0,80.4]
[1741194935194,24.4651,143.06,143.0,80.4]
[1741194935391,24.4651,143.06,143.03,0.033]
[1741194936202,76.50775467,143.06,143.03,0.033]
[1741194936406,20.0,143.04,142.97,80.4]
[1741194937009,52.04265467,143.05,142.97,111.21606862]
[1741194937222,6.991,143.04,142.98,49.46571748]
[1741194938224,52.04265467,143.05,143.0,30.81606862]
[1741194938225,6.9906,143.05,143.0,30.81606862]
[1741194938517,6.9906,143.05,143.0,80.4]
[1741194938819,24.467,143.05,143.0,80.4]
[1741194939199,20.0,143.05,143.0,80.4]
[1741194940022,20.42648471,143.04,142.96,80.4]
[1741194940205,52.04265467,143.03,142.96,80.4]
[1741194940410,0.42648471,143.02,142.96,80.4]
[1741194940724,2.02568471,143.02,142.96,80.4]
[1741194941306,24.4737,143.01,142.96,80.4]
[1741194941508,24.4737,143.01,142.93,111.21606862]
[1741194942223,6.9925,143.01,142.94,49.46571748]
[1741194943040,6.9925,143.01,142.94,18.64964886]
[1741194943217,6.9925,143.01,142.93,248.11606862]
[1741194943721,24.4737,143.01,142.93,217.3]
[1741194943940,6.9925,143.01,142.93,255.11246862]
[1741194944227,6.9925,143.01,142.93,248.11606862]
[1741194944909,24.4737,143.01,142.93,217.3]
[1741194945398,24.4737,143.01,142.93,248.11606862]
[1741194945603,6.9925,143.01,142.93,224.2963]
[1741194945814,6.9925,143.01,142.93,248.11606862]
[1741194946219,6.9925,143.01,142.94,30.81606862]
[1741194946613,6.9925,143.01,142.94,1.46860998]
[1741194946815,6.9925,143.01,142.95,30.81606862]
[1741194947012,1.5992,143.02,142.96,49.46571748]
[1741194947217,6.9918,143.03,142.97,30.81606862]
[1741194947421,24.4669,143.05,142.96,273.76031748]
[1741194947807,6.9905,143.05,142.97,30.81606862]
[1741194948022,6.9905,143.05,142.98,30.81606862]
[1741194948217,6.9905,143.05,142.99,30.81606862]
[1741194948417,6.9905,143.05,142.99,111.21606862]
[1741194948625,6.9905,143.05,142.99,80.4]
[1741194948837,1.6076,143.06,142.99,111.21606862]
[1741194949140,6.9886,143.09,143.02,30.81606862]
[1741194949303,6.9886,143.09,143.02,80.4]
[1741194949509,24.4601,143.09,143.02,80.4]
[1741194949731,0.42648471,143.08,143.02,80.4]
[1741194950226,0.42648471,143.08,142.99,124.71116862]
[1741194950434,52.04265467,143.08,143.0,30.81606862]
[1741194950811,52.04265467,143.08,143.01,30.81606862]
[1741194951013,52.04265467,143.08,143.0,30.81606862]
[1741194951429,52.04265467,143.08,142.99,119.1858354]
[1741194951634,6.9895,143.07,143.0,30.81606862]
[1741194952016,6.9895,143.07,143.01,30.81606862]
[1741194952217,6.9895,143.07,143.01,249.58404887]
[1741194952420,24.4634,143.07,143.01,217.3]
[1741194952620,8.505,143.1,143.04,50.81606862]
[1741194952911,8.505,143.1,143.04,80.4]
[1741194953108,25.9753,143.1,143.02,217.3]
[1741194953429,25.9753,143.1,143.02,80.4]
[1741194953741,6.989,143.08,143.02,80.4]
[1741194954110,24.4617,143.08,142.99,86.9017]
[1741194954314,76.50435467,143.08,142.99,86.9017]
[1741194954620,0.42648471,143.07,142.99,80.4]
[1741194954813,59.03165467,143.08,142.99,118.20926862]
[1741194955134,52.04265467,143.08,143.02,30.81606862]
[1741194955343,6.9886,143.09,143.02,111.21606862]
[1741194955547,6.9886,143.09,143.03,30.81606862]
[1741194955711,8.5051,143.1,143.03,37.80756862]
[1741194956051,1.5168,143.1,143.04,30.81606862]
[1741194956344,7.0169,143.13,143.06,30.81606862]
[1741194956632,0.03,143.13,143.08,30.81606862]
[1741194957143,0.03,143.13,143.1,30.81606862]
[1741194957440,0.03,143.13,143.1,111.21606862]
[1741194957619,0.03,143.13,143.1,118.20396862]
[1741194958240,0.03,143.13,143.1,80.4]
[1741194958915,0.03,143.13,143.12,30.81606862]
[1741194959117,0.03,143.13,143.12,268.51684022]
[1741194959316,0.03,143.13,143.12,579.05004062]
[1741194960124,0.03,143.13,143.12,217.3]
[1741194961026,0.03,143.13,143.08,30.81606862]
[1741194961434,0.03,143.13,143.08,111.21606862]
[1741194961635,0.03,143.13,143.08,80.4]
[1741194961840,0.03,143.13,143.09,18.64964886]
[1741194962037,0.03,143.13,143.11,30.81606862]
[1741194962532,0.03,143.13,143.12,30.81606862]
[1741194962745,0.03,143.13,143.12,129.86571748]
[1741194962950,0.03,143.13,143.12,111.21606862]
[1741194963244,0.03,143.13,143.12,441.86571748]
[1741194963627,0.03,143.13,143.12,442.15004062]
[1741194963839,0.03,143.13,143.12,585.08994062]
[1741194964039,0.03,143.14,143.12,585.08994062]
[1741194964040,0.03,143.14,143.13,19.07613357]
[1741194964225,0.03,143.2,143.19,30.81606862]
[1741194964422,0.03,143.2,143.19,266.76571748]
[1741194964657,0.03,143.2,143.19,298.15043238]
[1741194964829,0.03,143.2,143.19,304.39413238]
[1741194965146,0.03,143.2,143.19,273.57806376]
[1741194965532,0.03,143.2,143.19,273.43590219]
[1741194966043,0.03,143.2,143.19,86.6437]
[1741194966239,0.03,143.2,143.14,223.8532]
[1741194966625,0.03,143.2,143.14,217.3]
[1741194966844,0.03,143.2,143.14,80.4]
[1741194967021,0.42648471,143.19,143.11,80.4]
[1741194967942,24.4447,143.18,143.11,80.4]
[1741194968949,6.9842,143.18,143.11,111.21606862]
[1741194969131,6.9842,143.18,143.12,30.81606862]
[1741194969336,6.9837,143.19,143.14,30.81606862]
[1741194969542,0.03,143.2,143.16,30.81606862]
[1741194969719,0.03,143.2,143.17,30.81606862]
[1741194969925,0.03,143.2,143.18,30.81606862]
[1741194970423,0.03,143.2,143.19,49.89220219]
[1741194970625,0.03,143.2,143.19,70.28613196]
[1741194970823,0.03,143.2,143.18,224.2839]
[1741194970824,0.03,143.2,143.18,217.3]
[1741194971033,0.03,143.2,143.18,267.18640816]
[1741194971250,0.03,143.2,143.18,80.4]
[1741194971426,0.03,143.2,143.14,80.4]
[1741194971627,0.03,143.2,143.12,80.4]
[1741194971628,20.0,143.19,143.12,80.4]
[1741194972123,76.48735467,143.18,143.1,80.4]
[1741194972745,52.46913938,143.17,143.1,80.4]
[1741194973633,0.42648471,143.15,143.07,80.4]
[1741194973835,52.46913938,143.15,143.07,80.4]
[1741194974146,6.9866,143.13,143.07,80.4]
[1741194974343,52.46913938,143.12,143.04,80.4]
[1741194975441,52.04265467,143.12,143.04,137.27730816]
[1741194975738,52.04265467,143.12,143.06,49.88640816]
[1741194976047,52.04265467,143.12,143.04,106.04054886]
[1741194976048,6.9876,143.11,143.04,392.4]
[1741194976253,6.9876,143.11,143.04,80.4]
[1741194976546,59.02975467,143.12,143.05,49.88640816]
[1741194976751,59.02975467,143.12,143.04,80.4]
[1741194977335,59.02995467,143.12,143.04,130.28640816]
[1741194977530,59.02995467,143.12,143.04,80.4]
[1741194978735,76.49775467,143.12,143.04,80.4]
[1741194978936,52.04265467,143.12,143.05,49.88640816]
[1741194979542,59.02985467,143.12,143.04,442.28640816]
[1741194979747,59.02985467,143.12,143.04,80.4]
[1741194979954,59.02985467,143.12,143.04,87.391]
[1741194980132,52.04265467,143.12,143.04,137.27740816]
[1741194980332,6.9863,143.14,143.06,49.88640816]
[1741194980539,52.04265467,143.15,143.09,49.88640816]
[1741194980740,6.9853,143.16,143.09,80.4]
[1741194980957,25.63494886,143.16,143.09,80.4]
[1741194981141,43.09784886,143.16,143.09,80.4]
[1741194981344,19.07613357,143.15,143.09,80.4]
[1741194981550,6.9853,143.16,143.09,80.4]
[1741194981851,6.9853,143.16,143.09,130.28640816]
[1741194982149,6.9853,143.16,143.09,80.4]
[1741194982351,25.63494886,143.16,143.09,80.4]
[1741194982551,0.03,143.18,143.11,49.88640816]
[1741194982762,0.03,143.18,143.13,49.88640816]
[1741194982940,0.03,143.18,143.14,49.88640816]
[1741194983135,0.03,143.18,143.14,130.28640816]
[1741194983340,0.03,143.18,143.14,80.4]
[1741194983540,0.03,143.18,143.14,131.75308849]
[1741194983947,0.03,143.18,143.15,49.88640816]
[1741194984134,0.03,143.18,143.14,80.4]
[1741194984755,0.03,143.18,143.12,80.4]
[1741194984964,0.03,143.18,143.13,49.88640816]
[1741194985163,0.03,143.18,143.13,130.28640816]
[1741194985462,0.03,143.18,143.13,80.4]
[1741194985638,0.03,143.18,143.13,130.28640816]
[1741194985839,0.03,143.18,143.14,49.88640816]
[1741194986156,0.03,143.18,143.16,49.88640816]
[1741194986548,0.03,143.18,143.17,56.87110816]
[1741194986860,0.03,143.18,143.17,267.18640816]
[1741194987055,0.03,143.18,143.17,274.17110816]
[1741194987252,0.03,143.18,143.17,293.3894033]
[1741194987561,0.03,143.2,143.19,39.07613357]
[1741194987757,0.03,143.2,143.19,90.14392587]
[1741194988537,0.03,143.2,143.19,97.12762587]
[1741194989036,0.03,143.2,143.19,295.63581544]
[1741194989365,0.03,143.2,143.19,599.18640816]
[1741194989665,0.03,143.2,143.19,529.3]
[1741194989864,0.03,143.2,143.19,392.4]
[1741194990075,0.03,143.2,143.19,80.4]
[1741194990252,0.03,143.2,143.19,138.73626438]
[1741194990558,0.03,143.2,143.19,294.42807481]
[1741194990758,0.03,143.2,143.19,293.24624173]
[1741194991137,0.03,143.2,143.19,267.18640816]
[1741194991341,0.03,143.2,143.19,217.3]
[1741194991536,0.03,143.2,143.19,267.18640816]
[1741194992480,0.03,143.2,143.19,80.4]
[1741194993763,0.03,143.2,143.17,6.34]
[1741194993960,0.03,143.2,143.14,80.4]
[1741194994137,0.03,143.2,143.13,80.4]
[1741194994338,0.03,143.2,143.13,130.28640816]
[1741194994538,0.03,143.2,143.13,80.4]
[1741194994763,52.49913938,143.2,143.13,80.4]
[1741194996645,6.9837,143.19,143.13,80.4]
[1741194996845,24.443,143.19,143.13,80.4]
[1741194997569,0.42648471,143.14,143.06,80.4]
[1741194997769,1.5226,143.12,143.06,80.4]
[1741194998566,0.42648471,143.1,143.03,80.433]
[1741194998765,76.50275467,143.09,143.03,0.033]
[1741194998985,0.42648471,143.08,143.03,0.033]
[1741194999285,52.04265467,143.07,143.03,0.033]
[1741194999461,52.04265467,143.06,143.03,0.033]
[1741195000874,6.9905,143.05,143.03,0.033]
[1741195002358,52.04265467,143.06,143.03,0.033]
[1741195002675,59.03275467,143.06,143.03,0.033]
[1741195003566,52.04265467,143.06,143.03,0.033]
[1741195003972,52.04265467,143.1,143.03,0.033]
[1741195004271,52.04265467,143.09,143.03,0.033]
[1741195004568,59.03125467,143.09,143.03,0.033]
[1741195004945,52.04265467,143.09,143.03,0.033]
[1741195005150,1.5226,143.12,143.04,49.88640816]
[1741195005464,1.5226,143.12,143.05,49.88640816]
[1741195005665,1.5226,143.12,143.06,49.88640816]
[1741195005861,75.47351587,143.15,143.08,49.88640816]
[1741195006168,75.47351587,143.15,143.11,49.88640816]
[1741195006169,23.4308612,143.15,143.11,49.88640816]
[1741195006346,23.4308612,143.15,143.11,130.28640816]
[1741195006550,23.4308612,143.15,143.12,49.88640816]
[1741195006777,59.02645467,143.19,143.12,49.88640816]
[1741195007072,59.02645467,143.19,143.11,87.3874]
[1741195007275,59.02645467,143.19,143.11,137.27380816]
[1741195007966,76.48575467,143.19,143.11,80.4]
[1741195008172,76.48575467,143.19,143.11,392.4]
[1741195008387,20.0,143.16,143.11,392.4]
[1741195008545,20.0,143.16,143.11,80.4]
[1741195009077,6.9847,143.17,143.11,80.4]
[1741195009288,59.02685467,143.18,143.11,87.3874]
[1741195009587,59.02685467,143.18,143.11,137.27380816]
[1741195010157,0.45648471,143.2,143.12,49.88640816]
[1741195010158,0.03,143.2,143.12,49.88640816]
[1741195010391,6.9837,143.19,143.12,130.28640816]
[1741195010890,0.03,143.2,143.13,49.88640816]
[1741195011192,7.0132,143.2,143.13,49.88640816]
[1741195011349,24.4713,143.2,143.13,80.4]
[1741195011962,0.03,143.19,143.13,80.4]
[1741195012351,0.03,143.19,143.13,137.27290816]
[1741195012552,0.03,143.19,143.13,80.4]
[1741195014372,0.03,143.19,143.13,143.8866]
[1741195014571,0.03,143.19,143.13,193.77300816]
[1741195015472,0.03,143.19,143.14,49.88640816]
[1741195015669,0.03,143.19,143.15,49.88640816]
[1741195015992,0.03,143.19,143.15,130.28640816]
[1741195016150,0.03,143.19,143.15,80.4]
[1741195019281,0.03,143.19,143.12,80.433]
[1741195019578,24.473,143.19,143.12,80.433]
[1741195019775,24.473,143.19,143.12,130.31940816]
[1741195020081,7.0137,143.19,143.14,49.88640816]
[1741195020267,24.473,143.19,143.12,392.433]
[1741195020467,24.473,143.19,143.13,49.88640816]
[1741195020871,24.473,143.19,143.12,80.433]
[1741195021198,7.0137,143.19,143.13,49.88640816]
[1741195021580,7.0137,143.19,143.14,49.88640816]
[1741195021785,7.0137,143.19,143.13,49.88640816]
[1741195021969,24.473,143.19,143.12,80.433]
[1741195022284,24.473,143.19,143.13,4.16004842]
[1741195022962,24.473,143.19,143.12,130.31940816]
[1741195023173,24.473,143.19,143.12,80.433]
[1741195023466,24.473,143.19,143.12,130.31940816]
[1741195023683,24.473,143.19,143.12,80.433]
[1741195024267,24.473,143.19,143.12,130.31940816]
[1741195024489,24.473,143.19,143.12,80.433]
[1741195024893,24.473,143.19,143.12,130.31940816]